bitfinex/quotes_ETHUSD_20260203
["timestamp","ask_amount","ask_price","bid_price","bid_amount"]
[1770111200645,12.33012831,2286.1,2284.8,1.09418127]
[1770111200847,12.33012831,2286.1,2284.8,1.09418027]
[1770111201025,12.33012831,2286.1,2284.6,1.09425289]
[1770111201220,12.33012831,2285.9,2284.3,1.09442717]
[1770111202460,13.24712831,2285.9,2284.4,1.56190077]
[1770111202662,13.76420247,2285.8,2284.5,0.50020656]
[1770111203364,1.09375683,2285.7,2284.6,1.09428346]
[1770111203789,1.09375683,2285.7,2284.5,0.50020656]
[1770111203790,13.42388514,2285.7,2284.5,0.50020656]
[1770111204069,13.42388514,2285.7,2284.2,2.36375246]
[1770111204070,13.42388514,2285.7,2284.2,0.80185169]
[1770111204648,13.42388514,2285.7,2284.2,1.89629454]
[1770111204846,12.33012831,2285.5,2284.2,1.89629454]
[1770111205036,12.33012831,2285.5,2284.5,1.09431737]
[1770111205235,1.09390041,2285.4,2284.3,1.09442717]
[1770111205657,13.42402872,2285.4,2284.3,1.09442717]
[1770111205971,12.33012831,2285.4,2284.3,1.09442717]
[1770111206139,12.33012831,2285.4,2284.4,0.62739876]
[1770111206645,1.09386605,2285.5,2284.4,0.62739876]
[1770111208063,1.92329866,2285.6,2284.5,1.09433136]
[1770111208269,12.33012831,2285.8,2284.5,1.09433136]
[1770111208270,1.09378219,2285.7,2284.5,1.09433136]
[1770111208567,1.09378219,2285.7,2284.5,2.65623213]
[1770111209071,13.42387317,2285.8,2284.5,2.65623213]
[1770111209239,13.42387317,2285.8,2284.6,1.56190077]
[1770111209240,1.09374486,2285.8,2284.6,1.56190077]
[1770111209556,1.73227189,2285.8,2284.7,0.26562321]
[1770111210066,0.63852703,2285.8,2284.8,1.09418767]
[1770111210364,1.73224386,2285.8,2284.8,1.09418767]
[1770111210661,1.09371683,2285.8,2284.8,1.09418767]
[1770111211264,13.42384514,2285.8,2284.8,1.09418767]
[1770111211462,13.42384514,2285.8,2284.7,1.35982726]
[1770111211650,12.33012831,2285.6,2284.2,0.80185169]
[1770111211847,12.33012831,2285.4,2284.2,0.80185169]
[1770111212050,12.33012831,2285.2,2284.7,0.001]
[1770111212251,12.33012831,2285.0,2283.7,1.09470994]
[1770111212453,12.33012831,2284.8,2284.0,1.09454614]
[1770111212669,12.33012831,2284.8,2284.5,0.001]
[1770111212885,12.33012831,2284.8,2283.8,1.09463459]
[1770111213363,12.33012831,2284.8,2283.7,1.09468772]
[1770111213547,12.33012831,2284.8,2283.6,1.09474062]
[1770111213862,1.36548411,2284.7,2283.6,1.64222344]
[1770111214064,1.36548411,2284.7,2283.7,1.09471185]
[1770111214271,1.09428346,2284.6,2283.6,1.64221283]
[1770111214475,1.09428346,2284.6,2283.6,0.54748282]
[1770111214679,13.42441177,2284.6,2283.5,0.001]
[1770111216181,13.42441177,2284.6,2283.3,0.001]
[1770111216857,13.24712831,2285.1,2283.3,6.94734459]
[1770111217062,2.01107833,2285.1,2283.5,8.50824536]
[1770111217383,2.01105042,2285.1,2283.8,1.56190077]
[1770111217787,14.34117873,2285.1,2283.6,2.41272531]
[1770111217990,14.34117873,2285.1,2283.4,1.56190077]
[1770111218402,14.34117873,2285.1,2283.5,1.09481059]
[1770111221097,14.34117873,2285.1,2283.3,4.38024239]
[1770111221499,14.34117873,2285.1,2283.3,11.32658698]
[1770111221699,14.34117873,2285.1,2283.4,8.50824536]
[1770111221895,1.87172107,2285.0,2283.5,1.52342254]
[1770111222393,14.34117873,2285.1,2283.4,8.50824536]
[1770111222983,14.34117873,2285.1,2283.5,10.23]
[1770111223180,14.34117873,2285.1,2283.6,1.09476265]
[1770111224808,14.34117873,2285.1,2283.3,1.09586874]
[1770111225032,13.24712831,2285.0,2283.5,1.0947958]
[1770111225185,13.42436387,2284.7,2283.3,0.001]
[1770111226484,13.42436387,2284.7,2283.7,0.001]
[1770111227283,1.09423556,2284.7,2283.7,0.001]
[1770111227879,0.0011,2284.9,2283.7,0.001]
[1770111228085,1.09524209,2284.9,2283.7,0.001]
[1770111228708,0.0011,2284.9,2283.7,0.001]
[1770111229601,0.0011,2284.9,2283.7,1.09571471]
[1770111230111,0.0011,2284.9,2283.7,2.66084245]
[1770111230485,0.0011,2284.9,2283.7,1.09571471]
[1770111230880,12.20459213,2284.9,2283.7,0.001]
[1770111232194,1.09418767,2284.8,2283.7,0.001]
[1770111235194,13.31849595,2284.8,2283.7,0.001]
[1770111235920,14.23549595,2284.8,2283.7,3.831]
[1770111236609,14.23549595,2284.8,2283.7,0.001]
[1770111238424,2.01118767,2284.8,2283.7,0.001]
[1770111238928,14.23549595,2284.8,2283.7,0.001]
[1770111239632,2.01118767,2284.8,2283.7,0.001]
[1770111240437,0.0011,2284.7,2283.7,0.001]
[1770111240617,0.0011,2284.7,2283.7,8.51247233]
[1770111240933,0.0011,2284.7,2283.9,1.09461885]
[1770111241502,0.0011,2284.7,2283.9,2.65974659]
[1770111241699,0.0011,2284.9,2283.9,2.65974659]
[1770111241905,1.09418947,2284.8,2284.0,10.23]
[1770111242106,1.09527524,2284.9,2284.1,10.23]
[1770111242331,0.0011,2284.9,2284.1,10.23]
[1770111242837,0.0011,2284.9,2284.2,1.09447508]
[1770111243037,0.0011,2284.9,2284.3,10.23]
[1770111243536,12.22540828,2284.9,2284.4,3.83]
[1770111243735,12.22540828,2284.9,2283.9,1.09461479]
[1770111244034,0.0011,2284.9,2284.1,1.09452159]
[1770111244838,0.0011,2284.9,2283.9,4.37842547]
[1770111245511,12.22540828,2284.9,2283.9,1.09461885]
[1770111245711,12.22540828,2284.9,2283.7,2.66081453]
[1770111245937,12.22540828,2284.9,2283.8,1.09466424]
[1770111246312,0.0011,2284.9,2283.8,1.09466424]
[1770111247243,0.0011,2284.9,2283.8,2.65979198]
[1770111247551,0.0011,2284.9,2283.9,1.56512774]
[1770111248851,12.22540828,2284.9,2283.9,1.56512774]
[1770111249024,0.0011,2284.9,2283.9,1.56512774]
[1770111250544,0.0011,2284.9,2284.0,1.09457092]
[1770111252318,0.0011,2284.9,2284.2,1.56512774]
[1770111252513,12.22430828,2285.8,2284.4,1.09437926]
[1770111252744,13.31801726,2285.8,2284.4,2.659507]
[1770111253047,13.31801726,2285.8,2284.3,1.0944065]
[1770111253634,13.31801726,2285.8,2284.3,2.65953424]
[1770111254326,13.31801726,2285.8,2284.4,10.77524459]
[1770111254639,1.09479571,2285.9,2284.6,12.33927233]
[1770111254813,1.09479571,2285.9,2284.7,12.33817233]
[1770111255014,0.0011,2285.9,2284.7,13.25517233]
[1770111255238,0.0011,2285.9,2284.8,12.33817233]
[1770111255440,4.37450266,2286.0,2284.8,12.33817233]
[1770111255623,1.09366515,2285.9,2284.8,10.77304459]
[1770111256042,1.09342197,2286.4,2284.8,12.33817233]
[1770111256255,5.23796643,2286.5,2285.1,10.77304459]
[1770111256256,0.86432537,2286.5,2285.1,10.77304459]
[1770111256420,0.86432537,2286.5,2285.5,11.86689713]
[1770111256626,1.09333454,2286.6,2285.5,11.86689713]
[1770111257040,1.09330525,2286.7,2285.5,11.86689713]
[1770111257844,13.31761353,2286.7,2285.4,1.09388291]
[1770111258430,13.31761353,2286.7,2285.1,1.09404402]
[1770111259454,13.31761353,2286.7,2285.0,5.29320637]
[1770111259455,12.22430828,2286.5,2285.0,1.09408684]
[1770111260921,11.8281244,2286.3,2284.8,4.37636761]
[1770111262453,11.8281244,2286.3,2284.7,1.09418767]
[1770111262454,11.8281244,2286.1,2284.7,1.0942275]
[1770111262822,11.8281244,2286.1,2284.6,4.37699023]
[1770111263151,11.8281244,2286.0,2284.5,15.14998685]
[1770111263334,12.92171978,2286.1,2284.6,10.77304459]
[1770111264051,12.92171978,2286.1,2284.4,1.09437926]
[1770111264926,12.92171978,2286.1,2284.5,10.77304459]
[1770111266732,12.92171978,2286.1,2284.6,0.001]
[1770111266940,12.92281978,2286.1,2284.6,1.09528346]
[1770111268954,12.92281978,2286.1,2284.8,1.09418767]
[1770111269152,12.92281978,2286.1,2284.9,3.83]
[1770111271173,12.92281978,2286.1,2285.0,1.0940919]
[1770111271460,12.92281978,2286.1,2285.0,4.9240919]
[1770111271775,12.92281978,2286.1,2285.0,3.83]
[1770111272126,4.37426184,2286.5,2284.9,1.09410579]
[1770111272127,1.13158249,2287.1,2285.2,10.77304459]
[1770111272334,1.13158249,2287.1,2285.3,1.56512774]
[1770111272335,11.8281244,2287.0,2285.3,1.56512774]
[1770111272635,11.8281244,2287.0,2285.2,10.77304459]
[1770111272836,11.7981244,2287.0,2285.2,12.33817233]
[1770111273135,1.09318291,2286.9,2285.3,1.09394827]
[1770111273334,1.09318291,2286.9,2285.3,11.89699286]
[1770111273555,12.92130731,2286.9,2285.3,11.89699286]
[1770111274338,12.92130731,2286.9,2285.3,1.09394827]
[1770111274632,12.92130731,2286.9,2285.3,11.89699286]
[1770111275749,11.8281244,2286.9,2285.3,11.89699286]
[1770111276060,13.95030785,2287.3,2285.5,12.36817233]
[1770111276260,13.95030785,2287.3,2285.6,1.56512774]
[1770111276261,13.03330785,2287.3,2285.6,1.56512774]
[1770111276464,0.1121696,2287.3,2285.8,1.56512774]
[1770111276759,0.917,2287.2,2285.9,12.36817233]
[1770111276959,0.917,2287.2,2285.9,10.80304459]
[1770111277345,0.917,2287.2,2286.0,1.09361329]
[1770111277547,0.917,2287.2,2286.0,11.89665788]
[1770111279047,0.917,2287.2,2286.0,1.09361329]
[1770111279243,0.917,2287.2,2286.0,11.89665788]
[1770111279446,0.0868183,2287.3,2286.0,11.89665788]
[1770111279644,0.0868183,2287.3,2286.2,10.80304459]
[1770111280274,0.0011,2287.1,2286.2,10.80304459]
[1770111282083,0.0011,2287.1,2286.3,1.09346979]
[1770111283956,0.0011,2287.3,2286.3,1.09346979]
[1770111284770,11.8281244,2287.5,2286.3,1.09346979]
[1770111285454,0.917,2287.4,2286.3,11.89651438]
[1770111287282,0.0016,2287.7,2286.3,11.89651438]
[1770111287452,0.917,2287.4,2286.3,11.89651438]
[1770111287785,0.917,2287.6,2286.5,10.80304459]
[1770111287993,0.917,2287.6,2286.6,1.09332633]
[1770111288359,0.0016,2287.7,2286.6,11.89637092]
[1770111288560,0.9186,2287.7,2286.6,11.89637092]
[1770111288976,12.7467244,2287.7,2286.6,1.09332633]
[1770111289986,12.7467244,2287.7,2286.5,4.37330534]
[1770111290796,0.9186,2287.7,2286.5,15.17634993]
[1770111292080,0.916,2287.6,2286.7,1.09327852]
[1770111292590,0.916,2287.5,2286.7,1.09327852]
[1770111293162,11.84164304,2288.0,2286.7,1.09327852]
[1770111293365,0.916,2287.9,2286.7,1.09327852]
[1770111294084,11.84164304,2288.0,2286.7,11.89632311]
[1770111294391,13.33584038,2287.9,2286.7,1.09427852]
[1770111294558,0.0011,2287.5,2286.7,1.09427852]
[1770111296381,0.0011,2287.5,2286.7,0.001]
[1770111298868,0.9171,2287.5,2286.7,0.001]
[1770111299390,0.0011,2287.5,2286.7,0.001]
[1770111300168,0.916,2287.7,2286.7,0.001]
[1770111300600,0.916,2287.7,2286.8,1.09323071]
[1770111301397,13.33584038,2287.7,2286.8,1.09323071]
[1770111301693,14.42864159,2287.7,2286.8,1.09323071]
[1770111301998,13.33584038,2287.7,2286.8,1.09323071]
[1770111302203,12.41984038,2288.3,2287.0,10.80304459]
[1770111302497,12.41984038,2288.1,2287.0,1.53512774]
[1770111302696,12.41984038,2288.1,2287.1,1.09308731]
[1770111303478,13.51245024,2288.1,2286.9,4.37266224]
[1770111303680,13.51245024,2288.1,2287.0,1.09311884]
[1770111304181,12.41984038,2288.0,2287.0,1.09311884]
[1770111304505,0.916,2287.9,2287.0,1.09311884]
[1770111305092,0.916,2287.9,2286.9,4.37266224]
[1770111306290,14.42856395,2287.9,2286.8,6.72023205]
[1770111306694,14.42856395,2287.9,2286.8,4.37254044]
[1770111307294,14.42856395,2287.9,2286.9,10.23]
[1770111307602,0.916,2287.8,2286.9,10.23]
[1770111307803,12.42094038,2287.7,2287.0,10.23]
[1770111308313,11.37245136,2287.7,2287.0,10.23]
[1770111309512,12.46529308,2287.7,2287.0,10.23]
[1770111309708,12.46529308,2287.7,2286.8,4.3728235]
[1770111309709,12.46529308,2287.7,2286.8,4.92320629]
[1770111310011,12.46529308,2287.7,2286.8,4.92320024]
[1770111310303,12.46529308,2287.7,2286.7,1.09427604]
[1770111310882,12.46529308,2287.7,2286.7,0.001]
[1770111312089,0.916,2287.6,2286.7,0.001]
[1770111312294,13.33584038,2287.6,2286.7,0.001]
[1770111314082,12.41984038,2287.4,2286.7,0.001]
[1770111315579,12.41984038,2287.4,2286.1,1.09354142]
[1770111315781,12.41984038,2287.4,2286.2,1.09349521]
[1770111316210,12.41984038,2287.2,2285.9,1.09366114]
[1770111317402,0.916,2287.1,2286.0,12.99299065]
[1770111318216,2.06115602,2287.1,2286.1,1.09356546]
[1770111318516,14.4809964,2287.1,2286.1,1.09356546]
[1770111318907,0.96804794,2287.1,2286.1,14.08655611]
[1770111319419,2.06113794,2287.1,2286.1,14.08655611]
[1770111319593,0.96804794,2287.1,2286.1,14.08655611]
[1770111320199,0.96804794,2287.1,2286.1,14.08755611]
[1770111320414,14.92180206,2287.1,2286.1,1.09456546]
[1770111320850,2.06113759,2287.1,2286.1,1.09456546]
[1770111321025,0.05204794,2287.1,2286.1,13.4806239]
[1770111321225,0.916,2287.0,2286.1,13.4806239]
[1770111322122,0.916,2287.0,2286.1,1.09456546]
[1770111322306,0.916,2287.0,2286.1,0.001]
[1770111322307,13.95383408,2287.0,2286.1,0.001]
[1770111322509,4.42451471,2287.1,2286.1,12.38705844]
[1770111322510,0.916,2286.9,2286.1,12.38705844]
[1770111322709,1.09301812,2287.3,2286.1,12.38705844]
[1770111322898,0.916,2287.2,2286.1,12.38705844]
[1770111323098,12.86066447,2287.4,2286.1,12.90468672]
[1770111323294,0.916,2287.3,2286.1,12.90468672]
[1770111324070,12.86176447,2287.7,2286.1,12.90468672]
[1770111324071,0.0011,2287.7,2286.6,12.38605844]
[1770111324366,2.04158565,2288.4,2287.2,12.38605844]
[1770111324506,4.3689884,2288.9,2287.2,12.38605844]
[1770111324507,0.916,2288.3,2287.2,12.38605844]
[1770111324706,0.916,2288.3,2287.4,12.3340105]
[1770111325529,0.916,2288.2,2287.4,12.3340105]
[1770111326027,13.77666447,2288.2,2287.0,1.09313511]
[1770111326432,1.09260958,2288.1,2286.9,12.38605844]
[1770111326843,13.95327405,2288.1,2286.8,4.37254044]
[1770111327206,0.916,2288.2,2286.9,12.38605844]
[1770111327511,0.916,2288.2,2287.1,14.73375005]
[1770111328110,13.95284446,2289.0,2287.2,12.38605844]
[1770111328448,0.916,2288.4,2287.2,12.38605844]
[1770111329132,0.916,2288.4,2287.4,12.38605844]
[1770111330537,1.09232429,2288.7,2287.4,12.38605844]
[1770111330839,0.916,2288.6,2287.4,12.38605844]
[1770111331233,0.916,2288.6,2287.5,13.47895461]
[1770111333042,0.0016,2289.1,2287.7,12.38605844]
[1770111333254,0.0016,2289.1,2287.9,12.38605844]
[1770111333920,4.367807,2289.5,2287.8,2.6573079]
[1770111333921,12.86066447,2290.0,2288.2,12.38605844]
[1770111334174,13.77666447,2289.9,2288.2,12.38605844]
[1770111334442,13.77666447,2289.8,2288.2,12.38605844]
[1770111335014,0.916,2289.8,2288.2,12.38605844]
[1770111335211,2.00780654,2289.8,2288.4,12.38605844]
[1770111335423,2.00780654,2289.8,2288.3,1.09251409]
[1770111335424,12.86066447,2293.8,2290.8,12.38605844]
[1770111335622,12.86066447,2293.5,2292.4,0.22798377]
[1770111335866,13.95073398,2293.5,2292.4,0.22798377]
[1770111336171,1.08989449,2293.8,2292.5,8.28887238]
[1770111336374,13.9505281,2293.9,2292.5,7.03304216]
[1770111336667,0.9192,2294.7,2292.7,12.48845844]
[1770111336668,1.08951451,2294.6,2292.7,12.48845844]
[1770111336972,13.95017898,2294.6,2292.9,9.52322755]
[1770111337126,13.95017898,2294.6,2292.9,8.35422678]
[1770111337454,0.0032,2294.7,2293.1,13.55505921]
[1770111337655,0.0032,2294.7,2293.2,0.92287508]
[1770111337656,12.86386447,2294.7,2293.2,0.92287508]
[1770111337952,0.66882411,2294.6,2293.3,2.09187585]
[1770111338117,13.77986447,2294.7,2293.4,0.92287508]
[1770111338451,0.916,2294.7,2293.1,13.55505921]
[1770111338625,0.916,2294.7,2293.4,8.35422678]
[1770111338833,13.77666447,2295.1,2293.5,0.91832789]
[1770111339156,13.77666447,2295.1,2293.3,1.16900077]
[1770111339344,1.08932461,2295.0,2293.3,1.09013212]
[1770111339689,13.77666447,2295.1,2293.4,12.61962874]
[1770111339977,1.67392983,2297.0,2294.6,12.38605844]
[1770111339978,1.20078522,2296.5,2294.6,12.38605844]
[1770111340184,0.1121696,2296.5,2295.0,8.35422678]
[1770111340383,0.09020693,2296.9,2295.0,8.35422678]
[1770111340384,0.09020693,2296.9,2295.6,12.38605844]
[1770111340590,0.09020693,2296.9,2295.2,12.38605844]
[1770111340786,0.09020693,2296.9,2295.3,0.1024]
[1770111340988,0.09020693,2296.9,2295.6,12.38605844]
[1770111341187,1.17863438,2296.9,2295.1,12.38605844]
[1770111341374,14.03929885,2296.9,2295.1,13.47530182]
[1770111341572,14.03929885,2296.9,2294.8,0.1024]
[1770111341777,14.03929885,2296.9,2295.1,1.08926216]
[1770111342658,12.86066447,2296.7,2294.2,4.35872753]
[1770111342874,12.86066447,2296.1,2293.6,16.74591023]
[1770111343076,12.86066447,2295.7,2293.7,1.08990537]
[1770111343279,1.08913479,2295.4,2293.7,1.08994201]
[1770111343967,17.21703663,2295.5,2293.7,13.47600045]
[1770111343968,13.94978302,2295.5,2293.7,13.47600045]
[1770111344672,1.08911855,2295.5,2293.7,13.47600045]
[1770111344876,2.00311855,2295.5,2293.7,13.47600045]
[1770111345074,2.00311855,2295.5,2293.7,1.08994201]
[1770111345075,14.86378302,2295.5,2293.7,1.08994201]
[1770111345270,12.96306447,2295.4,2293.2,16.74670362]
[1770111345492,12.86066447,2295.2,2293.3,1.09013212]
[1770111346097,12.86066447,2295.2,2292.6,16.74787718]
[1770111346098,12.86066447,2295.2,2292.6,12.38605844]
[1770111346309,12.86066447,2294.8,2293.2,1.09017227]
[1770111346682,12.86066447,2294.6,2292.4,0.0008]
[1770111346887,12.86066447,2294.4,2292.4,0.0008]
[1770111347087,12.86066447,2294.4,2293.2,1.09017585]
[1770111347492,12.86066447,2294.2,2292.5,1.09051254]
[1770111348287,0.003,2294.7,2293.0,12.38605844]
[1770111348484,0.003,2294.7,2293.1,0.2335703]
[1770111348984,1.09246758,2294.7,2293.0,12.38605844]
[1770111349379,0.003,2294.7,2293.1,1.0902272]
[1770111349711,0.003,2294.7,2293.1,13.47628564]
[1770111350281,0.003,2294.7,2293.1,1.0902272]
[1770111351618,0.003,2294.7,2292.9,4.3609107]
[1770111351619,0.003,2294.7,2292.9,16.44992323]
[1770111351914,0.003,2294.7,2292.9,12.08901253]
[1770111351915,0.914,2294.6,2292.9,12.08901253]
[1770111352141,0.914,2294.6,2292.8,4.36090881]
[1770111352411,13.87492229,2294.6,2292.8,4.36090881]
[1770111352804,13.87492229,2294.6,2292.7,4.36090881]
[1770111353896,12.96092229,2294.4,2292.6,0.001]
[1770111354390,12.96092229,2294.2,2292.6,0.001]
[1770111354801,12.96092229,2294.0,2292.6,0.001]
[1770111355918,1.08984698,2293.9,2292.6,0.001]
[1770111356109,1.08984698,2293.9,2292.4,0.0008]
[1770111356110,12.96092229,2293.8,2292.4,0.0008]
[1770111356412,0.914,2293.7,2292.4,0.0008]
[1770111356613,13.87492229,2293.7,2292.4,0.0008]
[1770111357306,12.96092229,2293.7,2292.4,0.0008]
[1770111357510,1.08984698,2293.9,2292.4,0.0008]
[1770111357511,0.914,2293.6,2292.4,0.0008]
[1770111358105,1.09003706,2293.5,2292.4,0.0008]
[1770111358423,2.00402274,2293.6,2292.4,0.0008]
[1770111358910,1.09002274,2293.6,2292.4,0.0008]
[1770111359100,0.914,2293.5,2292.4,0.0008]
[1770111360225,2.00404525,2293.5,2292.4,0.0008]
[1770111361816,14.96496754,2293.5,2292.4,0.0008]
[1770111362023,14.96496754,2293.5,2292.6,0.001]
[1770111362229,2.00404525,2293.5,2292.6,0.001]
[1770111362403,1.09004525,2293.5,2292.6,0.001]
[1770111362603,0.914,2293.4,2292.6,0.001]
[1770111363209,0.914,2293.4,2292.4,0.0008]
[1770111363830,0.914,2293.4,2292.5,0.9249459]
[1770111364137,0.914,2293.4,2292.4,0.0008]
[1770111364138,14.05105441,2293.3,2292.1,1.16900077]
[1770111364340,1.09013212,2293.3,2292.2,0.92781227]
[1770111364506,5.27452849,2293.4,2292.2,0.92781227]
[1770111364507,1.09011639,2293.4,2292.4,1.16900077]
[1770111364833,0.914,2293.3,2292.5,0.92781227]
[1770111365042,0.914,2293.3,2292.6,0.92781227]
[1770111365239,0.914,2293.3,2292.7,0.9312594]
[1770111365409,1.09011639,2293.4,2292.8,0.9312594]
[1770111365613,0.914,2293.3,2292.9,0.9312594]
[1770111365935,0.914,2293.3,2292.6,1.16900077]
[1770111366119,0.914,2293.3,2292.8,1.09036985]
[1770111366328,0.914,2293.3,2292.9,0.93123462]
[1770111366529,0.914,2293.3,2293.0,0.93123462]
[1770111366710,0.914,2293.3,2292.8,1.16900077]
[1770111366909,0.914,2293.3,2292.9,0.93115443]
[1770111367104,0.914,2293.3,2292.7,1.16394294]
[1770111367105,2.00414626,2293.3,2292.7,1.16394294]
[1770111367332,2.00414626,2293.3,2292.5,1.09047967]
[1770111367539,2.00414626,2293.3,2292.6,1.09046103]
[1770111367735,2.00413437,2293.3,2292.5,1.55867985]
[1770111368035,2.00413437,2293.3,2292.4,1.55867985]
[1770111368036,0.914,2293.3,2292.4,1.55867985]
[1770111368243,0.914,2293.3,2292.4,2.64922493]
[1770111368441,0.914,2293.3,2292.4,1.09054508]
[1770111368616,12.96092229,2294.3,2292.4,2.64922493]
[1770111368815,0.914,2294.2,2292.8,1.55867985]
[1770111369009,0.914,2294.2,2292.9,1.55867985]
[1770111369609,13.87492229,2294.2,2292.9,1.55867985]
[1770111369922,13.87492229,2294.2,2292.8,1.55867985]
[1770111370115,13.87492229,2294.2,2292.6,1.55867985]
[1770111370311,14.05067426,2294.1,2292.7,2.64909726]
[1770111370729,14.05067426,2294.1,2292.7,1.55867985]
[1770111371043,12.96092229,2293.9,2292.6,1.09046119]
[1770111371221,12.96092229,2293.9,2292.7,1.55867985]
[1770111371614,0.914,2293.8,2292.9,1.55867985]
[1770111371811,13.87492229,2293.8,2292.7,1.55667178]
[1770111372014,13.87492229,2293.8,2292.5,2.33800155]
[1770111372337,14.0508643,2293.7,2292.6,2.33800155]
[1770111372720,14.0508643,2293.7,2292.6,1.09045967]
[1770111372912,14.0508643,2293.7,2292.6,2.33800155]
[1770111372913,1.08994201,2293.7,2292.6,2.33800155]
[1770111373109,1.08994201,2293.7,2292.7,2.33800155]
[1770111374244,1.08994201,2293.7,2292.8,2.33800155]
[1770111374441,14.0508643,2293.7,2292.6,2.33800155]
[1770111374656,1.08994201,2293.7,2292.5,2.33800155]
[1770111374947,1.08994201,2293.7,2292.5,1.09047858]
[1770111375444,1.08994201,2293.7,2292.5,1.0905047]
[1770111375754,1.08979947,2294.0,2292.8,1.09036776]
[1770111375915,0.914,2293.6,2292.8,1.09036776]
[1770111376315,0.914,2293.6,2292.8,3.42836931]
[1770111376516,4.3591979,2294.2,2292.8,3.42936931]
[1770111376517,0.914,2293.5,2292.8,3.42936931]
[1770111376742,0.9151,2293.5,2292.9,2.33800155]
[1770111377316,0.0011,2293.5,2292.9,2.33800155]
[1770111378140,0.0011,2293.5,2292.8,3.42936931]
[1770111378446,1.09113706,2293.5,2292.8,2.33900155]
[1770111378661,1.09113706,2293.5,2292.8,0.001]
[1770111379247,1.09113706,2293.5,2292.9,0.93827328]
[1770111379454,0.0011,2293.5,2293.0,0.93827328]
[1770111379656,0.0011,2293.5,2292.8,1.09136483]
[1770111379657,0.9151,2293.5,2293.1,0.93827328]
[1770111379820,0.9151,2293.5,2293.2,0.93827328]
[1770111380022,0.9151,2293.5,2293.3,0.93827328]
[1770111380330,4.35860704,2294.4,2293.4,0.93827328]
[1770111380530,1.08952173,2294.6,2293.5,0.93827328]
[1770111380839,4.36105804,2294.7,2293.6,0.93827328]
[1770111380840,0.914,2294.5,2293.6,0.93827328]
[1770111381050,0.914,2294.5,2293.7,0.93827328]
[1770111381259,0.914,2294.5,2293.8,0.93827328]
[1770111381432,0.914,2294.5,2293.9,0.93827328]
[1770111381633,0.914,2294.6,2294.0,0.93827328]
[1770111381850,0.914,2294.6,2294.1,0.93827328]
[1770111382051,0.914,2294.6,2294.2,0.93827328]
[1770111382248,0.914,2294.6,2294.3,0.93827328]
[1770111382455,2.00355758,2294.6,2294.4,0.93827328]
[1770111382656,2.00355758,2294.6,2293.8,16.25270226]
[1770111382850,2.00355758,2294.6,2293.9,0.93851659]
[1770111383045,2.00355758,2294.6,2294.0,0.93851659]
[1770111383256,2.00355758,2294.6,2294.1,0.93851659]
[1770111383431,2.00355758,2294.6,2294.2,0.93851659]
[1770111383630,2.00355758,2294.6,2293.6,1.08998253]
[1770111383870,2.00355758,2294.6,2293.9,1.08984314]
[1770111384028,2.00355758,2294.6,2293.8,1.08986629]
[1770111384238,0.914,2294.6,2293.6,12.81470217]
[1770111384453,0.003,2294.7,2294.3,1.08964229]
[1770111384672,0.914,2295.0,2294.3,1.08964229]
[1770111384839,0.914,2295.0,2294.1,1.08972537]
[1770111385040,0.914,2295.0,2294.2,1.08970009]
[1770111385261,0.914,2295.0,2294.1,1.08972701]
[1770111385467,0.914,2295.0,2294.0,1.08977385]
[1770111385633,0.914,2295.0,2293.9,13.9045252]
[1770111385841,0.914,2295.0,2293.9,1.0898376]
[1770111386164,0.914,2295.0,2294.0,12.81470217]
[1770111386571,1.08937208,2294.9,2294.0,12.81470217]
[1770111386738,1.08937208,2294.9,2294.0,13.90449856]
[1770111387066,1.08937208,2294.9,2294.0,1.08977727]
[1770111388136,1.08937208,2294.9,2293.9,12.81470217]
[1770111388341,1.08937208,2294.9,2293.3,3.43824904]
[1770111388342,13.36106409,2294.9,2293.3,3.43824904]
[1770111388578,12.27169201,2294.7,2293.1,13.90490267]
[1770111389443,4.45988834,2295.1,2295.0,12.81470217]
[1770111389444,4.35748834,2295.1,2295.0,12.81470217]
[1770111389695,5.30844126,2296.8,2295.0,12.81470217]
[1770111389696,5.31637421,2297.7,2297.6,0.22748865]
[1770111389841,22.62453067,2298.7,2297.6,0.22748865]
[1770111389842,13.0,2298.7,2297.6,0.22748865]
[1770111390041,13.0,2298.5,2297.2,2.79412023]
[1770111390342,13.0,2298.5,2296.5,5.4779471]
[1770111390678,14.08768998,2298.5,2296.5,5.4779471]
[1770111390975,14.08768998,2298.5,2296.5,1.08859886]
[1770111391675,13.0,2298.3,2296.4,1.08863386]
[1770111391974,13.0,2297.9,2295.7,0.0008]
[1770111392149,13.0,2297.7,2295.7,1.08976188]
[1770111392349,14.46075189,2297.7,2295.9,1.08889647]
[1770111392561,13.0,2297.5,2295.7,0.0008]
[1770111393650,14.01321856,2297.5,2295.7,0.0008]
[1770111393850,13.0,2297.5,2295.7,0.0008]
[1770111394677,14.08823401,2297.3,2295.7,0.0008]
[1770111395050,13.0,2297.1,2295.7,0.0008]
[1770111395351,13.0,2296.9,2295.7,0.0008]
[1770111395656,13.0,2296.7,2295.7,0.0008]
[1770111396589,13.0,2296.5,2295.7,0.0008]
[1770111398888,13.0,2296.3,2295.7,0.0008]
[1770111399092,13.0,2296.3,2294.9,0.0008]
[1770111399466,14.01321856,2296.3,2294.9,0.0008]
[1770111399692,13.0,2296.3,2294.9,0.0008]
[1770111399995,12.9996,2296.1,2294.9,0.0008]
[1770111400164,12.9992,2295.5,2294.2,0.0008]
[1770111400668,0.1024,2295.8,2294.2,0.0008]
[1770111400669,12.9992,2295.3,2294.2,0.0008]
[1770111400991,12.9992,2295.1,2294.2,0.0008]
[1770111401211,12.9992,2294.9,2294.2,0.0008]
[1770111402889,0.913,2294.8,2294.2,0.0008]
[1770111403088,1.08946703,2294.7,2294.2,0.0008]
[1770111403392,15.00164694,2294.8,2294.2,0.0008]
[1770111403560,13.9122,2294.8,2294.2,0.0008]
[1770111403765,0.913,2294.8,2294.2,0.0008]
[1770111403989,2.00242605,2294.8,2294.2,0.0008]
[1770111404187,0.913,2294.8,2294.2,0.0008]
[1770111404574,15.00163183,2294.8,2294.2,0.0008]
[1770111404773,12.9992,2295.4,2294.4,0.001]
[1770111404974,12.9992,2295.2,2294.4,0.001]
[1770111405193,12.9987,2295.0,2294.2,0.0008]
[1770111407296,12.9983,2294.8,2293.5,0.0008]
[1770111407468,12.9983,2294.8,2293.6,0.92903371]
[1770111407668,12.9983,2294.8,2293.7,0.92903371]
[1770111407864,12.9983,2294.8,2293.5,0.0008]